[Event "5th Cesme Open 2017"]
[Site "Cesme"]
[Date "2017.06.14"]
[Round "4.21"]
[White "Yenil, Mucahit"]
[Black "Ersoy, Bora"]
[Result "0-1"]
[ECO "D04"]
[WhiteElo "1606"]
[BlackElo "1675"]
[Annotator "NA"]
[PlyCount "76"]
[EventType "swiss"]
[EventCountry "TUR"]
[SourceTitle "playchess.com"]
[Source "ChessBase"]
[SourceQuality "1"]
[TimeControl "5400+30"]

1. d4 {[%emt 0:11:30]} d5 {[%emt 0:01:00]} 2. Nf3 {[%emt 0:00:00]} Bf5 {[%emt 0:00:30]} 3. e3 {[%emt 0:00:00]} e6 {[%emt 0:00:30]} 4. Nbd2 {[%emt 0:00:30]} Nf6 {[%emt 0:01:30]} 5. b3 {[%emt 0:00:30]} Bd6 {[%emt 0:01:30]} 6. Bb2 {[%emt 0:00:00]} Nc6 {[%emt 0:00:30]} 7. a3 {[%emt 0:00:00]} h6 {[%emt 0:00:30]} 8. Bd3 {[%emt 0:00:00]} Ne7 {[%emt 0:00:30]} 9. Ne5 {[%emt 0:00:00]} Bxe5 {[%emt 0:03:30]} 10. dxe5 {[%emt 0:00:30]} Nd7 {[%emt 0:00:30]} 11. Qe2 {[%emt 0:01:30]} O-O {[%emt 0:03:30]} 12. e4 {[%emt 0:01:30]} Bh7 {[%emt 0:14:30]} 13. exd5 {[%emt 0:05:30]} Nxd5 {[%emt 0:00:30]} 14. Bxh7+ {[%emt 0:00:30]} Kxh7 {[%emt 0:00:30]} 15. g3 {[%emt 0:00:30]} Qg5 {[%emt 0:00:30]} 16. h4 {[%emt 0:00:30]} Qf5 {[%emt 0:00:30]} 17. O-O-O {[%emt 0:00:30]} Nc5 {[%emt 0:13:30]} 18. Rdf1 {[%emt 0:02:30]} Kg8 {[%emt 0:16:30]} 19. h5 {[%emt 0:01:30]} Rad8 {[%emt 0:13:30]} 20. f4 {[%emt 0:00:30]} Ne7 {[%emt 0:03:30]} 21. g4 {[%emt 0:00:00]} Qh7 {[%emt 0:00:30]} 22. f5 {[%emt 0:01:00]} exf5 {[%emt 0:00:30]} 23. gxf5 {[%emt 0:00:00]} Nxf5 {[%emt 0:00:30]} 24. Qf2 {[%emt 0:01:00]} Rxd2 {[%emt 0:00:30]} 25. Qxd2 {[%emt 0:00:30]} Ng3 {[%emt 0:03:30]} 26. Qc3 {[%emt 0:03:30]} Ne2+ {[%emt 0:01:39]} 27. Kb1 {[%emt 0:00:30]} Nxc3+ {[%emt 0:00:11]} 28. Bxc3 {[%emt 0:00:30]} Ne4 {[%emt 0:00:59]} 29. Be1 {[%emt 0:00:00]} Re8 {[%emt 0:00:33]} 30. Rh3 {[%emt 0:01:00]} Rxe5 {[%emt 0:00:43]} 31. Rd3 {[%emt 0:00:00]} Nd6 {[%emt 0:01:22]} 32. Bc3 {[%emt 0:02:00]} Re7 {[%emt 0:00:15]} 33. Rg1 {[%emt 0:00:30]} f5 {[%emt 0:00:21]} 34. Rg6 {[%emt 0:00:30]} f4 {[%emt 0:00:24]} 35. Kc1 {[%emt 0:01:30]} Re3 {[%emt 0:02:21]} 36. Kd1 {[%emt 0:05:30]} Rxd3+ {[%emt 0:00:22]} 37. cxd3 {[%emt 0:00:30]} Nf5 {[%emt 0:00:30]} 38. Be1 {[%emt 0:00:30]} Ne7 {[%emt 0:00:15]} 0-1

[Event "5th Cesme Open 2017"]
[Site "Cesme"]
[Date "2017.06.14"]
[Round "4.22"]
[White "Rahmani, Jamshid"]
[Black "Yigiter, Fatih"]
[Result "1-0"]
[ECO "D03"]
[WhiteElo "1692"]
[BlackElo "1606"]
[Annotator "NA"]
[PlyCount "67"]
[EventType "swiss"]
[EventCountry "TUR"]
[SourceTitle "playchess.com"]
[Source "ChessBase"]
[SourceQuality "1"]
[TimeControl "5400+30"]

1. d4 {[%emt 0:00:30]} d5 {[%emt 0:01:00]} 2. Nf3 {[%emt 0:00:00]} Nf6 {[%emt 0:00:00]} 3. Bg5 {[%emt 0:00:00]} e6 {[%emt 0:00:00]} 4. e3 {[%emt 0:00:30]} Be7 {[%emt 0:00:30]} 5. Bd3 {[%emt 0:00:30]} Nbd7 {[%emt 0:01:30]} 6. Nbd2 {[%emt 0:00:30]} O-O {[%emt 0:02:30]} 7. O-O {[%emt 0:00:30]} c5 {[%emt 0:01:30]} 8. c3 {[%emt 0:00:30]} Nh5 {[%emt 0:01:30]} 9. Bxe7 {[%emt 0:02:30]} Qxe7 {[%emt 0:00:00]} 10. Ne5 {[%emt 0:02:30]} g6 {[%emt 0:04:00]} 11. f4 {[%emt 0:02:30]} cxd4 {[%emt 0:04:30]} 12. exd4 {[%emt 0:01:30]} Qh4 {[%emt 0:05:30]} 13. Qf3 {[%emt 0:07:30]} a6 {[%emt 0:02:30]} 14. Rae1 {[%emt 0:03:30]} b5 {[%emt 0:03:30]} 15. g4 {[%emt 0:08:30]} Nhf6 {[%emt 0:08:30]} 16. g5 {[%emt 0:02:30]} Nxe5 {[%emt 0:01:30]} 17. Rxe5 {[%emt 0:01:30]} Nh5 {[%emt 0:03:30]} 18. Re2 {[%emt 0:08:30]} f6 {[%emt 0:03:30]} 19. Rg2 {[%emt 0:03:30]} Ng7 {[%emt 0:08:30]} 20. Rg4 {[%emt 0:04:30]} Qh5 {[%emt 0:00:00]} 21. Qg3 {[%emt 0:01:30]} fxg5 {[%emt 0:02:00]} 22. Rxg5 {[%emt 0:06:30]} Qh6 {[%emt 0:00:30]} 23. Rf2 {[%emt 0:15:30]} Nh5 {[%emt 0:01:30]} 24. Qh4 {[%emt 0:01:30]} Kh8 {[%emt 0:03:30]} 25. Be2 {[%emt 0:01:30]} Ra7 {[%emt 0:10:30]} 26. Bxh5 {[%emt 0:00:30]} gxh5 {[%emt 0:00:30]} 27. Rfg2 {[%emt 0:04:30]} Raf7 {[%emt 0:02:30]} 28. Qg3 {[%emt 0:00:30]} Qxg5 {[%emt 0:13:04]} 29. Qxg5 {[%emt 0:00:48]} Bd7 {[%emt 0:00:41]} 30. Qe5+ {[%emt 0:00:19]} Rf6 {[%emt 0:00:21]} 31. Nf3 {[%emt 0:02:14]} Be8 {[%emt 0:00:21]} 32. Ng5 {[%emt 0:00:54]} Bd7 {[%emt 0:01:31]} 33. Kf2 {[%emt 0:01:47]} h6 {[%emt 0:00:57]} 34. Nxe6 {[%emt 0:02:18]} 1-0

[Event "5th Cesme Open 2017"]
[Site "Cesme"]
[Date "2017.06.14"]
[Round "4.23"]
[White "Alkan, Sukru"]
[Black "Bozkurt, Serkan"]
[Result "1/2-1/2"]
[ECO "A48"]
[WhiteElo "1571"]
[BlackElo "1589"]
[Annotator "NA"]
[PlyCount "114"]
[EventType "swiss"]
[EventCountry "TUR"]
[SourceTitle "playchess.com"]
[Source "ChessBase"]
[SourceQuality "1"]
[TimeControl "5400+30"]

1. d4 {[%emt 0:00:30]} Nf6 {[%emt 0:01:00]} 2. Nf3 {[%emt 0:00:00]} g6 {[%emt 0:00:00]} 3. Bf4 {[%emt 0:00:00]} Bg7 {[%emt 0:00:00]} 4. e3 {[%emt 0:00:30]} O-O {[%emt 0:00:30]} 5. Be2 {[%emt 0:00:00]} d6 {[%emt 0:00:30]} 6. Nbd2 {[%emt 0:00:00]} c5 {[%emt 0:00:30]} 7. c3 {[%emt 0:00:30]} Nc6 {[%emt 0:00:30]} 8. h3 {[%emt 0:00:30]} Re8 {[%emt 0:10:30]} 9. O-O {[%emt 0:00:30]} e5 {[%emt 0:01:30]} 10. dxe5 {[%emt 0:00:30]} Nxe5 {[%emt 0:02:30]} 11. Nc4 {[%emt 0:13:30]} Nxc4 {[%emt 0:07:30]} 12. Bxc4 {[%emt 0:01:30]} d5 {[%emt 0:00:30]} 13. Bb5 {[%emt 0:00:30]} Bd7 {[%emt 0:02:30]} 14. Qa4 {[%emt 0:01:30]} Bxb5 {[%emt 0:06:30]} 15. Qxb5 {[%emt 0:00:30]} Qb6 {[%emt 0:00:30]} 16. Qxb6 {[%emt 0:00:30]} axb6 {[%emt 0:00:00]} 17. Rfd1 {[%emt 0:00:30]} b5 {[%emt 0:06:00]} 18. a3 {[%emt 0:00:30]} Ra6 {[%emt 0:06:30]} 19. Kf1 {[%emt 0:00:30]} Rea8 {[%emt 0:02:30]} 20. Rac1 {[%emt 0:02:30]} Rd8 {[%emt 0:15:30]} 21. Bg5 {[%emt 0:04:30]} h6 {[%emt 0:02:30]} 22. Bxf6 {[%emt 0:00:30]} Bxf6 {[%emt 0:00:00]} 23. Rc2 {[%emt 0:00:30]} b4 {[%emt 0:06:00]} 24. axb4 {[%emt 0:00:00]} cxb4 {[%emt 0:00:30]} 25. cxb4 {[%emt 0:00:00]} Rb6 {[%emt 0:00:30]} 26. Rcd2 {[%emt 0:00:30]} Rxb4 {[%emt 0:00:30]} 27. Rxd5 {[%emt 0:00:30]} Rxd5 {[%emt 0:00:30]} 28. Rxd5 {[%emt 0:00:00]} Rxb2 {[%emt 0:00:30]} 29. Rd2 {[%emt 0:01:00]} Rb3 {[%emt 0:02:30]} 30. Nd4 {[%emt 0:00:30]} Rb4 {[%emt 0:01:30]} 31. Ke2 {[%emt 0:00:30]} Kf8 {[%emt 0:03:30]} 32. Kd3 {[%emt 0:01:30]} Bxd4 {[%emt 0:01:30]} 33. exd4 {[%emt 0:00:30]} Ke7 {[%emt 0:00:00]} 34. Kc3 {[%emt 0:00:30]} Rb1 {[%emt 0:02:00]} 35. Kc4 {[%emt 0:00:30]} Kd6 {[%emt 0:00:30]} 36. d5 {[%emt 0:00:30]} h5 {[%emt 0:02:03]} 37. h4 {[%emt 0:00:30]} f6 {[%emt 0:00:41]} 38. g3 {[%emt 0:00:00]} g5 {[%emt 0:00:52]} 39. hxg5 {[%emt 0:00:00]} fxg5 {[%emt 0:00:05]} 40. Kd4 {[%emt 0:01:30]} h4 {[%emt 0:02:50]} 41. gxh4 {[%emt 0:00:30]} gxh4 {[%emt 0:00:12]} 42. f4 {[%emt 0:00:00]} h3 {[%emt 0:03:43]} 43. f5 {[%emt 0:03:00]} Rb4+ {[%emt 0:01:58]} 44. Ke3 {[%emt 0:01:30]} Rh4 {[%emt 0:00:19]} 45. f6 {[%emt 0:00:30]} h2 {[%emt 0:05:46]} 46. f7 {[%emt 0:02:30]} Ke7 {[%emt 0:00:44]} 47. d6+ {[%emt 0:00:30]} Kxf7 {[%emt 0:00:06]} 48. d7 {[%emt 0:00:30]} Rh8 {[%emt 0:06:08]} 49. Rxh2 {[%emt 0:00:00]} Rd8 {[%emt 0:00:10]} 50. Kd4 {[%emt 0:01:00]} Rxd7+ {[%emt 0:00:43]} 51. Kc5 {[%emt 0:00:00]} Ke6 {[%emt 0:00:21]} 52. Kb6 {[%emt 0:00:00]} Rg7 {[%emt 0:00:43]} 53. Rd2 {[%emt 0:00:30]} Ke5 {[%emt 0:00:51]} 54. Rd1 {[%emt 0:00:00]} Rf7 {[%emt 0:00:10]} 55. Rd2 {[%emt 0:00:00]} Rg7 {[%emt 0:00:33]} 56. Rd1 {[%emt 0:00:30]} Rf7 {[%emt 0:00:10]} 57. Rd2 {[%emt 0:00:00]} Rg7 {[%emt 0:00:03]} 1/2-1/2

[Event "5th Cesme Open 2017"]
[Site "Cesme"]
[Date "2017.06.14"]
[Round "4.24"]
[White "Barik, Ertunc Bahadir"]
[Black "Mammadov, Anar"]
[Result "1-0"]
[ECO "A16"]
[WhiteElo "1538"]
[BlackElo "1687"]
[Annotator "NA RC"]
[PlyCount "71"]
[EventType "swiss"]
[EventCountry "TUR"]
[SourceTitle "playchess.com"]
[Source "ChessBase"]
[SourceQuality "1"]
[TimeControl "5400+30"]

1. c4 {[%emt 0:00:30]} Nf6 {[%emt 0:01:00]} 2. Nc3 {[%emt 0:00:00]} d5 {[%emt 0:00:30]} 3. cxd5 {[%emt 0:00:00]} Nxd5 {[%emt 0:00:30]} 4. e4 {[%emt 0:00:00]} Nxc3 {[%emt 0:01:30]} 5. bxc3 {[%emt 0:00:00]} e5 {[%emt 0:00:30]} 6. Nf3 {[%emt 0:00:30]} Bd6 {[%emt 0:11:30]} 7. Rb1 {[%emt 0:00:30]} c6 {[%emt 0:03:30]} 8. Bc4 {[%emt 0:06:30]} b5 {[%emt 0:03:30]} 9. Bb3 {[%emt 0:02:30]} Bg4 {[%emt 0:01:30]} 10. d4 {[%emt 0:03:30]} exd4 {[%emt 0:15:30]} 11. Qxd4 {[%emt 0:18:30]} O-O {[%emt 0:12:30]} 12. e5 {[%emt 0:02:30]} Bxf3 {[%emt 0:01:30]} 13. exd6 {[%emt 0:01:30]} Re8+ {[%emt 0:07:30]} 14. Be3 {[%emt 0:00:30]} Re4 {[%emt 0:02:30]} 15. Qd3 {[%emt 0:01:30]} Bxg2 {[%emt 0:05:30]} 16. Rg1 {[%emt 0:00:30]} Rg4 {[%emt 0:00:30]} 17. Bxf7+ {[%emt 0:00:30]} Kh8 {[%emt 0:01:30]} 18. Qf5 {[%emt 0:02:30]} Bh3 {[%emt 0:12:12]} 19. Rxg4 {[%emt 0:00:30]} Nd7 {[%emt 0:01:25]} 20. Bg5 {[%emt 0:02:30]} Bxg4 {[%emt 0:02:03]} 21. Qxg4 {[%emt 0:00:00]} Nf6 {[%emt 0:00:21]} 22. Qe6 {[%emt 0:03:00]} h6 {[%emt 0:02:22]} 23. Bxf6 {[%emt 0:01:30]} Qxf6 {[%emt 0:01:21]} 24. Qxf6 {[%emt 0:00:30]} gxf6 {[%emt 0:00:02]} 25. d7 {[%emt 0:00:30]} Rd8 {[%emt 0:00:07]} 26. Be8 {[%emt 0:00:30]} Kg7 {[%emt 0:00:02]} 27. a4 {[%emt 0:00:00]} a6 {[%emt 0:00:53]} 28. axb5 {[%emt 0:00:00]} axb5 {[%emt 0:00:05]} 29. c4 {[%emt 0:00:30]} Kf8 {[%emt 0:01:04]} 30. cxb5 {[%emt 0:00:00]} cxb5 {[%emt 0:00:44]} 31. Rxb5 {[%emt 0:00:00]} Ke7 {[%emt 0:00:10]} 32. Rc5 {[%emt 0:01:30]} Ra8 {[%emt 0:00:05]} 33. Rc8 {[%emt 0:00:00]} Ra1+ {[%emt 0:00:01]} 34. Ke2 {[%emt 0:00:00]} Ra2+ {[%emt 0:00:12]} 35. Kf3 {[%emt 0:00:30]} Rd2 {[%emt 0:00:31]} 36. d8=Q+ {[%emt 0:00:00]} 1-0

[Event "5th Cesme Open 2017"]
[Site "Cesme"]
[Date "2017.06.15"]
[Round "6.19"]
[White "Ozsakallioglu, Okan"]
[Black "Tuncer, Tuna"]
[Result "1/2-1/2"]
[ECO "B33"]
[WhiteElo "1925"]
[BlackElo "2302"]
[Annotator "ChessBase"]
[PlyCount "83"]
[EventType "swiss"]
[EventCountry "TUR"]
[SourceTitle "playchess.com"]
[Source "ChessBase"]
[SourceQuality "1"]
[TimeControl "5400+30"]

1. e4 c5 2. Nf3 Nc6 3. d4 cxd4 4. Nxd4 {[%emt 0:01:00]} Nf6 {[%emt 0:01:30]} 5. f3 {[%emt 0:01:30]} e5 {[%emt 0:04:30]} 6. Nb3 {[%emt 0:03:30]} d6 {[%emt 0:05:30]} 7. Be3 {[%emt 0:00:30]} Be6 {[%emt 0:00:30]} 8. c4 {[%emt 0:00:30]} Be7 {[%emt 0:01:30]} 9. Nc3 {[%emt 0:00:30]} O-O {[%emt 0:01:30]} 10. Be2 {[%emt 0:02:30]} Nh5 {[%emt 0:08:30]} 11. Qd2 {[%emt 0:04:30]} Rc8 {[%emt 0:07:30]} 12. Nd5 {[%emt 0:00:30]} h6 {[%emt 0:04:30]} 13. Nxe7+ {[%emt 0:05:30]} Qxe7 {[%emt 0:02:30]} 14. O-O {[%emt 0:00:30]} Rfd8 {[%emt 0:11:30]} 15. g3 {[%emt 0:03:30]} Nf6 {[%emt 0:07:30]} 16. Rfd1 {[%emt 0:00:30]} Rd7 {[%emt 0:01:30]} 17. Rac1 {[%emt 0:00:30]} Rf8 {[%emt 0:01:30]} 18. Na5 {[%emt 0:00:30]} Nh7 {[%emt 0:03:30]} 19. b4 {[%emt 0:10:30]} f5 {[%emt 0:05:30]} 20. exf5 {[%emt 0:04:30]} Rxf5 {[%emt 0:00:30]} 21. Nxc6 {[%emt 0:00:30]} bxc6 {[%emt 0:00:30]} 22. b5 {[%emt 0:00:30]} c5 {[%emt 0:08:30]} 23. Rc3 {[%emt 0:02:30]} Kh8 {[%emt 0:03:30]} 24. a4 {[%emt 0:02:30]} Rf8 {[%emt 0:01:47]} 25. a5 {[%emt 0:01:30]} e4 {[%emt 0:00:57]} 26. f4 {[%emt 0:01:30]} Nf6 {[%emt 0:00:47]} 27. Qc2 {[%emt 0:01:30]} Bf5 {[%emt 0:02:53]} 28. b6 {[%emt 0:00:30]} axb6 {[%emt 0:00:49]} 29. axb6 {[%emt 0:00:00]} Rb8 {[%emt 0:00:16]} 30. Rb3 {[%emt 0:01:00]} Rdb7 {[%emt 0:01:32]} 31. Rdb1 {[%emt 0:00:30]} Nd7 {[%emt 0:02:46]} 32. g4 {[%emt 0:00:30]} Bg6 {[%emt 0:01:16]} 33. f5 {[%emt 0:00:30]} Bf7 {[%emt 0:00:03]} 34. Bf4 {[%emt 0:00:30]} Kg8 {[%emt 0:04:17]} 35. Qd2 {[%emt 0:01:30]} Ne5 {[%emt 0:00:16]} 36. Qc2 {[%emt 0:01:30]} Nd7 {[%emt 0:03:41]} 37. Re3 {[%emt 0:00:30]} Nf6 {[%emt 0:00:19]} 38. g5 {[%emt 0:02:30]} hxg5 {[%emt 0:00:09]} 39. Bxg5 {[%emt 0:00:00]} Rxb6 {[%emt 0:00:27]} 40. Rxb6 {[%emt 0:00:00]} Rxb6 {[%emt 0:00:01]} 41. Bxf6 {[%emt 0:00:30]} Qxf6 {[%emt 0:00:02]} 42. Qxe4 {[%emt 0:00:00]} 1/2-1/2

[Event "5th Cesme Open 2017"]
[Site "Cesme"]
[Date "2017.06.15"]
[Round "6.20"]
[White "Kocak, Can"]
[Black "Rzayev, Askar Aliakbar"]
[Result "0-1"]
[ECO "B26"]
[WhiteElo "1930"]
[BlackElo "2082"]
[Annotator "NA"]
[PlyCount "94"]
[EventType "swiss"]
[EventCountry "TUR"]
[SourceTitle "playchess.com"]
[Source "ChessBase"]
[SourceQuality "1"]
[TimeControl "5400+30"]

{[%evp 13,94,5,7,-10,-11,-12,32767,8,6,0,-6,0,14,18,35,19,70,-2,37,-19,-15,-22,-25,-26,-33,-41,-32,-5,-8,-25,-10,-126,-121,-120,-111,-133,-45,-50,-52,-62,-21,-63,-69,-87,-69,-146,-132,-124,-124,-147,-135,-137,-142,-182,-180,-155,-214,-189,-211,-186,-153,-175,-173,-189,-113,-131,-139,-149,-170,-119,-161,-189,-159,-472,-244,-256,-217,-200,-287,-244,-76,-12845,-12846]} 1. e4 c5 2. Nc3 Nc6 3. g3 g6 4. Bg2 Bg7 5. d3 d6 6. Be3 Rb8 {[%emt 0:01:30]} 7. Nge2 {[%emt 0:01:30]} Nd4 {[%emt 0:00:30] LiveBook: 25 Games} 8. Qd2 {[%emt 0:00:00] B26: Closed Sicilian: 3 g3, lines with early Be3} (8. O-O e6 9. Qd2 Ne7 10. Rab1 Nec6 11. a3 O-O 12. b4 cxb4 13. axb4 b5 14. Nxd4 Nxd4 15. Ne2 Nxe2+ 16. Qxe2 a5 17. bxa5 Qxa5 {½-½ (36) Roy Chowdhury,S (2444)-Solodovnichenko,Y (2571) New Delhi 2009}) 8... Bg4 {[%emt 0:00:30]} 9. Ng1 {[%emt 0:05:00]} Qb6 $146 {[%emt 0:01:30]} ({Predecessor:} 9... b5 10. h3 Bd7 11. Nd1 b4 12. c3 bxc3 13. bxc3 Nc6 14. Ne2 Qc8 {0-1 (30) Kulhanek,T (2346)-Plat,V (2445) Nachod 2013}) 10. Rb1 {[%emt 0:03:30]} Qa5 {[%emt 0:02:30]} 11. h3 {[%emt 0:00:30]} Bd7 {[%emt 0:00:30]} 12. Nge2 {[%emt 0:12:30]} b5 {[%emt 0:06:30]} 13. a3 {[%emt 0:01:30]} h5 {[%emt 0:05:30]} 14. f4 {[%emt 0:03:30]} e6 {[%emt 0:02:30]} ({Black should play} 14... Rc8 $11) 15. O-O {[%emt 0:02:30]} (15. b4 $5 {[%cal Rb4a5]} Qxa3 {[#]} 16. e5 $1 {[%mdl 512]} dxe5 17. fxe5 Bxe5 18. Ne4 Nxe2 19. Kxe2 $14) 15... Ne7 {[%emt 0:00:30]} 16. Rbe1 {[%emt 0:11:30]} (16. b4 $14 Qc7 17. bxc5 Qxc5 18. Kh2) 16... b4 {[%emt 0:04:30]} 17. axb4 {[%emt 0:16:30]} Qxb4 {[%emt 0:00:30]} 18. b3 {[%emt 0:01:30]} a5 {[%emt 0:01:30]} 19. Kh1 {[%emt 0:04:30]} Nxe2 {[%emt 0:01:30]} 20. Nxe2 {[%emt 0:00:30]} Qxd2 {[%emt 0:00:30]} 21. Bxd2 {[%emt 0:00:00]} a4 {[%emt 0:00:00]} 22. Bc3 {[%emt 0:10:00]} (22. bxa4 $11 Rb2 23. Bc3 Bxc3 24. Nxc3) 22... Bxc3 {[%emt 0:01:00]} 23. Nxc3 {[%emt 0:00:00]} axb3 {[%emt 0:00:00]} 24. Rb1 {[%emt 0:00:00]} b2 {[%emt 0:01:00]} ({Better is} 24... Nc6 $17 25. Rxb3 Rxb3 26. cxb3 h4) 25. Nd1 {[%emt 0:00:00]} Nc6 {[%emt 0:00:30]} 26. Nxb2 {[%emt 0:01:00]} Nd4 {[%emt 0:00:30]} 27. Nc4 {[%emt 0:00:30]} Ke7 {[%emt 0:00:00]} 28. Ne3 {[%emt 0:04:30]} Ba4 {[%emt 0:02:00]} 29. Ra1 {[%emt 0:12:15]} (29. Rfc1 $15) 29... Nxc2 {[%emt 0:05:30]} 30. Nxc2 {[%emt 0:00:29]} Bxc2 {[%emt 0:00:00]} 31. Ra7+ {[%emt 0:00:07]} Kf6 {[%emt 0:00:00]} 32. e5+ {[%emt 0:02:42]} dxe5 {[%emt 0:01:30]} 33. fxe5+ {[%emt 0:00:04]} Kxe5 {[%emt 0:00:30]} 34. Raxf7 {[%emt 0:00:07]} Rb1 {[%emt 0:00:30]} 35. Rxb1 {[%emt 0:05:48]} Bxb1 {[%emt 0:00:30]} 36. Rc7 {[%emt 0:00:06]} Bxd3 {[%emt 0:01:30]} 37. Rxc5+ {[%emt 0:00:02]} Kd4 {[%emt 0:00:30]} 38. Rc6 {[%emt 0:00:19]} Bf5 {[%emt 0:00:30]} 39. Kg1 {[%emt 0:00:35]} Rb8 {[%emt 0:00:00]} 40. Rd6+ {[%emt 0:00:21] [#]} Ke3 $1 {[%emt 0:00:00]} 41. Ra6 {[%emt 0:01:51]} Rb1+ {[%emt 0:01:30]} 42. Kh2 {[%emt 0:00:02]} Rb2 {[%emt 0:00:30]} 43. Ra4 $2 {[%emt 0:00:37]} (43. Kg1 {is a better chance.}) 43... e5 {[%emt 0:02:30]} 44. g4 {[%emt 0:00:53]} hxg4 {[%emt 0:00:30]} 45. hxg4 {[%emt 0:00:01]} Bc2 {[%emt 0:00:30]} 46. Ra3+ {[%emt 0:02:42]} Kf4 $2 {[%emt 0:00:30]} (46... Kd2 $19 {is more deadly.} 47. Rf3 e4 48. Rf2+ Ke1 49. Rf1+ Ke2) 47. Ra5 $19 {[%emt 0:01:45]} (47. Rf3+ $11 Kg5 48. Rf2) 47... Be4 {[%emt 0:00:00]} 0-1

[Event "5th Cesme Open 2017"]
[Site "Cesme"]
[Date "2017.06.15"]
[Round "6.21"]
[White "Barik, Ertunc Bahadir"]
[Black "Ersoy, Bora"]
[Result "1-0"]
[ECO "D55"]
[WhiteElo "1538"]
[BlackElo "1675"]
[Annotator "NA RC"]
[PlyCount "119"]
[EventType "swiss"]
[EventCountry "TUR"]
[SourceTitle "playchess.com"]
[Source "ChessBase"]
[SourceQuality "1"]
[TimeControl "5400+30"]

1. c4 {[%emt 1:30:30]} e6 {[%emt 1:31:00]} 2. Nc3 {[%emt 0:00:00]} d5 {[%emt 0:00:00]} 3. d4 {[%emt 0:00:00]} Nf6 {[%emt 0:00:00]} 4. Bg5 {[%emt 0:00:00]} Be7 {[%emt 0:00:00]} 5. Nf3 {[%emt 0:00:00]} O-O {[%emt 0:00:00]} 6. e3 {[%emt 0:00:00]} b6 {[%emt 0:00:00]} 7. cxd5 {[%emt 0:00:00]} Nxd5 {[%emt 0:00:00]} 8. Bxe7 {[%emt 0:00:00]} Qxe7 {[%emt 0:00:00]} 9. Nxd5 {[%emt 0:00:00]} exd5 {[%emt 0:00:00]} 10. Be2 {[%emt 0:00:00]} Bb7 {[%emt 0:00:00]} 11. Rc1 {[%emt 0:00:00]} c6 {[%emt 0:00:00]} 12. Qa4 {[%emt 0:00:00]} Nd7 {[%emt 0:00:00]} 13. O-O {[%emt 0:00:00]} Rfc8 {[%emt 0:00:00]} 14. Ba6 {[%emt 0:00:00]} b5 {[%emt 0:00:00]} 15. Qa5 {[%emt 0:00:00]} Rab8 {[%emt 0:00:00]} 16. Bxb7 {[%emt 0:00:00]} Rxb7 {[%emt 0:00:00]} 17. Qa6 {[%emt 0:00:00]} Nb6 {[%emt 0:00:00]} 18. b3 {[%emt 0:00:00]} Rbc7 {[%emt 0:00:00]} 19. Qa5 {[%emt 0:00:00]} Qd6 {[%emt 0:00:00]} 20. a3 {[%emt 0:00:00]} f6 {[%emt 0:00:00]} 21. Qb4 {[%emt 0:00:00]} Qxb4 {[%emt 0:00:00]} 22. axb4 {[%emt 0:00:00]} Re7 {[%emt 0:00:00]} 23. Rc2 {[%emt 0:00:00]} Kf7 {[%emt 0:00:00]} 24. Rfc1 {[%emt 0:00:00]} Rec7 {[%emt 0:00:00]} 25. Ra1 {[%emt 0:00:00]} Ke7 {[%emt 0:00:00]} 26. Ne1 {[%emt 0:00:00]} Kd6 {[%emt 0:00:00]} 27. Nd3 {[%emt 0:00:00]} Nd7 {[%emt 0:00:00]} 28. Nc5 {[%emt 0:00:00]} Nxc5 {[%emt 0:00:00]} 29. bxc5+ {[%emt 0:00:00]} Ke6 {[%emt 0:00:00]} 30. b4 {[%emt 0:00:00]} Rb8 {[%emt 0:00:00]} 31. f3 {[%emt 0:00:00]} Rd8 {[%emt 0:00:00]} 32. Kf2 {[%emt 0:00:00]} h5 {[%emt 0:00:00]} 33. Rd2 {[%emt 0:00:00]} Kf5 {[%emt 0:00:00]} 34. g3 {[%emt 0:00:00]} g5 {[%emt 0:00:00]} 35. h3 {[%emt 0:00:00]} Re8 {[%emt 0:03:19]} 36. Re2 {[%emt 0:00:00]} g4 {[%emt 0:04:21]} 37. hxg4+ {[%emt 0:00:00]} hxg4 {[%emt 0:00:01]} 38. Rh1 {[%emt 0:00:00]} gxf3 {[%emt 0:01:02]} 39. Kxf3 {[%emt 0:00:00]} Rce7 {[%emt 0:00:30]} 40. Rh4 {[%emt 0:00:00]} Re4 {[%emt 0:05:35]} 41. Rh7 {[%emt 0:00:00]} R4e7 {[%emt 0:01:12]} 42. Rxe7 {[%emt 0:00:00]} Rxe7 {[%emt 0:00:00]} 43. g4+ {[%emt 0:00:00]} Ke6 {[%emt 0:02:32]} 44. Ra2 {[%emt 0:00:00]} Kf7 {[%emt 0:00:30]} 45. Ra6 {[%emt 0:00:00]} Rc7 {[%emt 0:00:00]} 46. e4 {[%emt 0:00:00]} dxe4+ {[%emt 0:01:34]} 47. Kxe4 {[%emt 0:00:00]} Re7+ {[%emt 0:00:29]} 48. Kf5 {[%emt 0:00:00]} Rc7 {[%emt 0:00:21]} 49. d5 {[%emt 0:00:00]} cxd5 {[%emt 0:00:09]} 50. Rxf6+ {[%emt 0:00:00]} Kg7 {[%emt 0:00:20]} 51. Rd6 {[%emt 0:00:00]} a5 {[%emt 0:00:15]} 52. c6 {[%emt 0:00:00]} Kg8 {[%emt 0:02:00]} 53. bxa5 {[%emt 0:00:00]} b4 {[%emt 0:00:21]} 54. Rd8+ {[%emt 0:00:00]} Kf7 {[%emt 0:00:17]} 55. Rd7+ {[%emt 0:00:00]} Rxd7 {[%emt 0:00:14]} 56. cxd7 {[%emt 0:00:00]} Ke7 {[%emt 0:00:07]} 57. a6 {[%emt 0:00:00]} b3 {[%emt 0:00:20]} 58. a7 {[%emt 0:00:00]} b2 {[%emt 0:00:04]} 59. d8=Q+ {[%emt 0:00:00]} Kxd8 {[%emt 0:00:12]} 60. a8=Q+ {[%emt 0:00:00]} 1-0